[Event "ITT 1st Parada Jamundi 2022"]
[Site "Jamundi Valle"]
[Date "2022.12.11"]
[Round "9.5"]
[White "Aguero Jimenez, Luis Lazaro"]
[Black "Argote Heredia, Valentina"]
[Result "1/2-1/2"]
[ECO "B20"]
[WhiteElo "2465"]
[BlackElo "2140"]
[Annotator "TA"]
[PlyCount "124"]
[EventDate "2022.12.05"]
[EventType "swiss"]
[EventCountry "COL"]
[SourceTitle "playchess.com"]
[Source "ChessBase"]
[SourceQuality "1"]
[TimeControl "5400+30"]

{[%evp 9,124,-16,0,-4,0,-16,0,0,0,-18,-8,-27,-29,-45,-24,-47,-51,-47,-45,-97,-48,-70,-70,-79,-76,-73,-38,-53,-35,-58,-42,-28,-30,-88,-35,-49,0,-54,-59,-62,-12,0,0,-26,0,0,-4,-14,10,18,4,10,58,13,82,82,106,122,115,125,177,50,41,40,33,17,92,21,205,0,38,0,0,0,0,0,0,0,0,0,0,0,0,0,22,22,22,22,22,22,22,22,22,22,22,22,22,0,0,0,0,0,0,0,0,0,0,0,0,0,0,0,0,0,0,0,0]} 1. e4 {[%emt 0:00:01]} c5 {[%emt 0:03:23]} 2. Ne2 {[%emt 0:00:05]} d6 {[%emt 0:05:05]} 3. g3 {[%emt 0:00:08]} d5 {[%emt 0:00:52]} 4. Bg2 {[%emt 0:02:02]} dxe4 {[%emt 0:00:45]} 5. Bxe4 {[%emt 0:00:38]} Nf6 {[%emt 0:00:41]} 6. Bg2 {[%emt 0:00:01] B20: Sicilian: Unusual White 2nd moves.} Nc6 {[%emt 0:01:08]} 7. Nbc3 {[%emt 0:00:43] [#]} g6 $146 {[%emt 0:02:32]} ({Predecessor:} 7... e6 8. d3 Be7 9. O-O O-O 10. h3 Nd4 11. Nf4 a6 12. Be3 Rb8 13. Ne4 b6 {1-0 (67) Anisimov,P (2527)-Indjic,A (2607) Chess.com INT 2021}) 8. d3 {[%emt 0:01:28]} Nd4 {[%emt 0:01:15]} 9. h3 {[%emt 0:01:46]} Bg7 {[%emt 0:00:34]} 10. Be3 {[%emt 0:00:30]} O-O {[%emt 0:01:04]} 11. Qd2 {[%emt 0:00:50]} Re8 {[%emt 0:05:12]} (11... Be6 {keeps more tension.} 12. O-O-O Qb6 13. Nf4 Bd7) 12. g4 {[%emt 0:01:07]} (12. O-O-O {seems wilder.} Qb6 13. g4 Rb8 14. f4) 12... Rb8 {[%emt 0:07:24]} 13. Ng3 {[%emt 0:04:50]} b5 {[%emt 0:06:14]} (13... Qb6 $5 {[%cal Rb6b2]}) 14. g5 {[%emt 0:03:15]} (14. Nce4 $15) 14... Nd7 {[%emt 0:00:20]} (14... Bb7 $17 15. Bxb7 (15. gxf6 $2 {too greedy.} Bxg2 16. Bxd4 cxd4 $19) 15... Rxb7 16. Bxd4 cxd4) 15. O-O $15 {[%emt 0:00:11]} Nb6 {[%emt 0:11:39][%cal Oc8h3]} 16. Kh1 {[%emt 0:23:26]} Bb7 {[%emt 0:08:29]} 17. Nce4 {[%emt 0:05:09]} c4 {[%emt 0:08:11]} 18. Rad1 {[%emt 0:04:40]} Nf5 {[%emt 0:00:30]} 19. Bf4 {[%emt 0:01:11]} e5 {[%emt 0:03:10]} (19... Nh4 $5) 20. Be3 {[%emt 0:00:05]} Nh4 {[%emt 0:01:37]} (20... Qc7 {is interesting.} 21. dxc4 Nxc4 22. Qd7 Qxd7 23. Rxd7 Nfxe3 24. fxe3 Rf8) 21. Qe2 {[%emt 0:00:43]} (21. dxc4 $1 $11 Nxc4 22. Qxd8 Rbxd8 23. Bc1) 21... Nxg2 {[%emt 0:00:29]} (21... c3 $17 22. bxc3 Nd5) 22. Kxg2 {[%emt 0:00:09]} c3 {[%emt 0:05:55]} (22... Nd5 $15 23. dxc4 bxc4) 23. Bxb6 {[%emt 0:01:48]} (23. bxc3 $11 Nd5 24. Qd2) 23... axb6 {[%emt 0:00:51]} 24. f3 {[%emt 0:01:44]} b4 {[%emt 0:05:47]} (24... cxb2 $15 25. Rb1 Qd4) 25. bxc3 $11 {[%emt 0:00:52]} bxc3 {[%emt 0:00:04]} 26. h4 {[%emt 0:00:08]} b5 {[%emt 0:03:18]} 27. Rb1 {[%emt 0:07:29] Prevents b4.} Bc6 {[%emt 0:01:29]} 28. a3 {[%emt 0:02:50]} Qa5 {[%emt 0:05:48]} 29. Rb3 {[%emt 0:04:46]} Rec8 {[%emt 0:00:46]} 30. Qe1 {[%emt 0:05:28]} Bd7 {[%emt 0:01:56]} (30... Bd5 $11 {is more appropriate.} 31. Rxc3 Rxc3 32. Qxc3 Qxc3 33. Nxc3 Bc6) 31. Rxc3 {[%emt 0:03:58]} Qa4 {[%emt 0:02:39]} (31... Qb6 $11) 32. Rf2 $16 {[%emt 0:04:16]} Be6 {[%emt 0:00:03]} 33. h5 {[%emt 0:04:18]} Rxc3 {[%emt 0:00:22]} 34. Qxc3 {[%emt 0:00:02]} Rc8 {[%emt 0:00:43] Prevents h6.} (34... Qd4 $16 {might work better.}) 35. Qd2 {[%emt 0:00:34]} ({White should try} 35. Qb2 $18) 35... Qxa3 $14 {[%emt 0:01:01]} 36. Nf6+ {[%emt 0:00:20]} Kh8 {[%emt 0:00:42]} 37. Nge4 {[%emt 0:01:30] Pair of Knights!} Bf5 {[%emt 0:01:48]} (37... gxh5 $1 $11 38. Nxh5 Bf5) 38. Qe3 {[%emt 0:01:37]} (38. h6 $16 Bxf6 39. Nxf6) 38... Qe7 $2 {[%emt 0:01:09]} (38... gxh5 $11 {and Black is okay.} 39. Nxh5 Qe7) 39. Qb6 $2 {[%emt 0:00:43]} (39. h6 $18 Bxf6 40. Nxf6) 39... Bxf6 {[%emt 0:01:14]} 40. Nxf6 {[%emt 0:04:56]} gxh5 {[%emt 0:00:58] The position is equal.} 41. f4 {[%emt 0:02:24]} Qc5 {[%emt 0:00:55]} 42. Qxc5 {[%emt 0:01:27]} Rxc5 {[%emt 0:00:05]} 43. fxe5 $11 {[%emt 0:00:25][%mdl 4096] Endgame KRB-KRN} Bg6 {[%emt 0:02:53]} ({Much less strong is} 43... Rxe5 44. d4 Be4+ 45. Kh3 $18) 44. Re2 {[%emt 0:00:28]} b4 {[%emt 0:00:26]} 45. Kg3 {[%emt 0:01:13]} Kg7 {[%emt 0:00:18]} ({Resist} 45... b3 46. cxb3 Bxd3 47. Ra2 $16) 46. Kh4 {[%emt 0:02:56]} h6 {[%emt 0:00:06]} 47. Nxh5+ {[%emt 0:00:31]} Bxh5 {[%emt 0:00:18]} 48. Kxh5 {[%emt 0:00:04]} hxg5 {[%emt 0:00:05]} 49. Kxg5 {[%emt 0:00:07] And now Kf4 would win. KR-KR} f6+ {[%emt 0:00:22]} 50. Kf5 {[%emt 0:00:10] [#] d4 is the strong threat.} fxe5 {[%emt 0:00:09]} 51. Ke6 {[%emt 0:00:30]} Kf8 {[%emt 0:02:13]} 52. Kd6 {[%emt 0:00:11]} Rc3 {[%emt 0:00:04]} 53. Kxe5 {[%emt 0:00:39] Threatens to win with Kd5.} b3 $1 {[%emt 0:00:16]} 54. cxb3 {[%emt 0:00:01] [#] Hoping for Kd5.} Rxd3 {[%emt 0:00:18]} 55. b4 {[%emt 0:00:18]} Ke7 {[%emt 0:00:49]} 56. Rc2 {[%emt 0:00:00]} Kd7 {[%emt 0:00:30]} 57. b5 {[%emt 0:00:11]} Rb3 {[%emt 0:00:28]} 58. Rc5 {[%emt 0:00:07]} Rb4 {[%emt 0:00:21]} 59. Kd5 {[%emt 0:00:13]} Rb1 {[%emt 0:00:39]} 60. Kd4 {[%emt 0:00:15]} Rb4+ {[%emt 0:00:24]} 61. Kc3 {[%emt 0:00:06]} Rb1 {[%emt 0:00:05]} 62. Kc2 {[%emt 0:00:11]} Rb4 {[%emt 0:00:00] Weighted Error Value: White=0.21 (precise) /Black=0.22 (precise)} 1/2-1/2

[Event "ITT 1st Parada Jamundi 2022"]
[Site "Jamundi Valle"]
[Date "2022.12.10"]
[Round "9.6"]
[White "Campos Gomez, Manuel"]
[Black "Paredes Lagos, Anthony Javier"]
[Result "1/2-1/2"]
[ECO "E05"]
[WhiteElo "2322"]
[BlackElo "2230"]
[Annotator "TA"]
[PlyCount "44"]
[EventDate "2022.12.05"]
[EventType "swiss"]
[EventCountry "COL"]
[SourceTitle "playchess.com"]
[Source "ChessBase"]
[SourceQuality "1"]
[TimeControl "5400+30"]

{[%evp 13,29,0,0,1,33,33,24,18,21,26,34,38,24,25,31,23,16,14]} 1. d4 {[%emt 0:00:56]} Nf6 {[%emt 0:05:49]} 2. Nf3 {[%emt 0:01:11]} e6 {[%emt 0:00:17]} 3. c4 {[%emt 0:00:13]} d5 {[%emt 0:00:37]} 4. g3 {[%emt 0:00:11]} Be7 {[%emt 0:00:06]} 5. Bg2 {[%emt 0:00:12]} O-O {[%emt 0:00:07]} 6. O-O {[%emt 0:00:19]} dxc4 {[%emt 0:00:49]} 7. Qc2 {[%emt 0:00:12]} b5 {[%emt 0:00:50]} 8. a4 {[%emt 0:00:09] E05: Open Catalan: 5 Nf3 Be7.} Bb7 {[%emt 0:01:48] now supersedes 8...b4.} 9. axb5 {[%emt 0:03:00]} a6 {[%emt 0:00:12]} 10. Nc3 {[%emt 0:05:47] Against Be4. White has an edge.} (10. Qxc4 $2 {loses.} axb5 11. Qxb5 Bc6 12. Rxa8 Bxb5 $19) 10... axb5 {[%emt 0:00:24]} 11. Rxa8 {[%emt 0:00:23]} Bxa8 {[%emt 0:00:04]} 12. Nxb5 {[%emt 0:00:35]} Bd5 {[%emt 0:00:36]} 13. Bf4 {[%emt 0:37:07]} c5 {[%emt 0:00:07]} 14. dxc5 {[%emt 0:02:16]} Qa5 {[%emt 0:00:05]} 15. Nc3 {[%emt 0:05:29] [#]   Weighted Error Value: White=0.00 (flawless) /Black=0.05 (flawless)} {Predecessor:} Qxc5 $146 16. Be3 Qa5 17. Nxd5 Nxd5 18. Bg5 Rc8 19. Bxe7 Nxe7 20. Nd2 c3 21. Rc1 Qa6 22. bxc3 Qxe2 {½-½ (36) Maghsoodloo,P (2701)-Nakamura,H (2768) Chess.com INT 2022} 1/2-1/2

[Event "ITT 1st Parada Jamundi 2022"]
[Site "Jamundi Valle"]
[Date "2022.12.10"]
[Round "9.7"]
[White "Delgado Ramirez, Neuris"]
[Black "Valdes Martinez, Miguel A."]
[Result "1-0"]
[ECO "B07"]
[WhiteElo "2572"]
[BlackElo "2104"]
[Annotator "TA"]
[PlyCount "55"]
[EventDate "2022.12.05"]
[EventType "swiss"]
[EventCountry "COL"]
[SourceTitle "playchess.com"]
[Source "ChessBase"]
[SourceQuality "1"]
[TimeControl "5400+30"]

{[%evp 18,55,35,22,43,30,58,47,65,43,56,51,48,39,103,97,83,83,98,75,220,96,321,325,402,414,493,493,485,403,455,459,612,531,712,562,761,738,29997,29998]} 1. e4 {[%emt 0:03:10]} d6 {[%emt 0:00:36]} 2. d4 {[%emt 0:00:07]} Nf6 {[%emt 0:00:17]} 3. Nc3 {[%emt 0:00:15]} Nbd7 {[%emt 0:00:16]} 4. g3 {[%emt 0:01:36]} e5 {[%emt 0:01:02]} 5. Nge2 {[%emt 0:00:27]} g6 {[%emt 0:03:40]} 6. Bg2 {[%emt 0:02:48]} Bg7 {[%emt 0:00:22]} 7. h3 {[%emt 0:00:10]} O-O {[%emt 0:00:15]} 8. O-O {[%emt 1:25:57]} c6 {[%emt 0:02:56]} 9. a4 {[%emt 0:00:00]} Re8 {[%emt 0:02:20]} 10. Re1 {[%emt 0:00:00]} Qc7 {[%emt 0:02:06] B07: Pirc Defence: Miscellaneous Systems.} 11. Be3 {[%emt 0:00:00]} b6 {[%emt 0:02:52]} 12. g4 {[%emt 0:00:00][%cal Bg3g4,Bg4g5][%mdl 32]} h6 {[%emt 0:02:57] White is slightly better.} 13. Qd2 {[%emt 0:00:00]} Kh7 $1 {[%emt 0:00:54]} 14. Ng3 {[%emt 0:00:00]} Bb7 {[%emt 0:04:03] [#]} 15. f4 $146 {[%emt 0:00:00][%cal Bf2f4,Bf4f5,Bf5f6][%mdl 32]} ({Predecessor:} 15. Rad1 Rad8 16. f4 Nf8 17. Nce2 Ne6 18. c3 c5 19. f5 exd4 20. cxd4 cxd4 21. Nxd4 Nxd4 22. Bxd4 {0-1 (46) Karimov,A (2168)-Ali,M (2421) Ashkhabad 2017}) 15... a6 {[%emt 0:04:52]} ({Better is} 15... exf4 $14 16. Bxf4 a6) 16. dxe5 $16 {[%emt 0:00:00]} dxe5 {[%emt 0:00:09]} 17. g5 {[%emt 0:00:00]} Ng8 {[%emt 0:02:09] [#]} 18. f5 $36 {[%emt 0:00:00][%mdl 2048] And now h4 would win. White is in control. White has more active pieces.} Rad8 {[%emt 0:06:10] [#]} (18... hxg5 $16 19. Bxg5 Ngf6) 19. Qf2 {[%emt 0:00:00]} (19. h4 $1 $18 {is more deadly.}) 19... c5 $2 {[%emt 0:05:41] Prevents a5.} (19... hxg5 $16 20. Bxg5 Bf6) 20. h4 $18 {[%emt 0:00:00]} h5 {[%emt 0:04:30]} 21. Rad1 {[%emt 0:00:00]} Nb8 {[%emt 0:07:13]} 22. f6 {[%emt 0:00:00]} Bf8 {[%emt 0:01:45]} 23. Nd5 {[%emt 0:00:00]} Bxd5 {[%emt 0:00:34]} 24. exd5 {[%emt 0:00:00]} ({Less strong is} 24. Rxd5 Qc8 25. Qf3 Nc6 $18) 24... b5 {[%emt 0:02:28]} 25. Be4 {[%emt 0:00:00]} Kh8 {[%emt 0:00:25]} 26. axb5 {[%emt 0:00:00]} axb5 {[%emt 0:00:17] [#]} 27. Nxh5 $1 {[%emt 0:00:00][%mdl 512]} gxh5 {[%emt 0:00:14]} (27... Nd7 28. Ng3) 28. Qf5 {[%emt 0:00:00] Black got outplayed after the opening.   Weighted Error Value: White=0.33/Black=0.98} 1-0

[Event "ITT 1st Parada Jamundi 2022"]
[Site "Jamundi Valle"]
[Date "2022.12.11"]
[Round "9.8"]
[White "Arango Arenas, Juan Camilo"]
[Black "Herrera, Juan Sebastian"]
[Result "1-0"]
[ECO "B43"]
[WhiteElo "2202"]
[BlackElo "2297"]
[Annotator "TA"]
[PlyCount "61"]
[EventDate "2022.12.05"]
[EventType "swiss"]
[EventCountry "COL"]
[SourceTitle "playchess.com"]
[Source "ChessBase"]
[SourceQuality "1"]
[TimeControl "5400+30"]

{[%evp 15,61,10,16,0,8,0,70,0,31,0,16,0,0,0,0,0,70,43,162,31,39,45,161,145,147,84,146,144,189,187,158,53,50,0,479,484,609,616,486,556,1236,1167,29991,29983,29996,29997,29997,29998]} 1. e4 {[%emt 0:01:45]} c5 {[%emt 0:00:32]} 2. Nf3 {[%emt 0:00:25]} e6 {[%emt 0:00:07]} 3. d4 {[%emt 0:00:20]} cxd4 {[%emt 0:00:04]} 4. Nxd4 {[%emt 0:01:07]} a6 {[%emt 0:00:10]} 5. Nc3 {[%emt 0:00:22]} Qc7 {[%emt 0:00:04]} 6. g3 {[%emt 0:00:47]} Bb4 {[%emt 0:00:12]} 7. Bd2 {[%emt 0:00:10]} Nf6 {[%emt 0:00:04]} 8. Bg2 {[%emt 0:00:09]} Nc6 {[%emt 0:00:10]} 9. Nb3 {[%emt 0:00:10] B43: Sicilian: Kan Variation: 5 Nc3.} Be7 {[%emt 0:00:06]} 10. O-O {[%emt 0:00:09]} b5 {[%emt 0:00:06]} ({Black should play} 10... d6 $11) 11. a3 {[%emt 0:00:30]} (11. a4 $14 bxa4 12. Rxa4) 11... Bb7 {[%emt 0:00:05]} 12. f4 {[%emt 0:00:09] Prevents Ne5.} (12. Nd5 {is interesting.} exd5 13. exd5 O-O 14. dxc6 Bxc6 15. Re1) 12... d6 {[%emt 0:00:08] Against e5} 13. Be3 {[%emt 0:02:35]} Rc8 {[%emt 0:17:39]} 14. Qe2 {[%emt 0:17:08]} O-O {[%emt 0:00:40]} 15. g4 {[%emt 0:00:48]} Rfd8 {[%emt 0:01:27]} (15... Nd7 $11) 16. g5 $14 {[%emt 0:00:09] [#]} Ne8 $146 {[%emt 0:00:09]} (16... Nd7 $14) ({Predecessor:} 16... Nd7 17. Rf3 Na5 18. Nxa5 Qxa5 19. Raf1 Rxc3 20. bxc3 Bxe4 21. Rg3 Bf5 22. Bh3 Bxh3 23. Rxh3 Qxc3 {1-0 (36) Parrini,D (2036)-Radice,M (1930) Campobasso 2009}) 17. Qh5 {[%emt 0:04:02]} (17. f5 $18) 17... g6 {[%emt 0:02:47]} 18. Qh4 {[%emt 0:04:06]} Na5 {[%emt 0:10:09]} (18... Ng7 $14) 19. Nxa5 $18 {[%emt 0:17:45]} Qxa5 {[%emt 0:00:03]} 20. Qf2 {[%emt 0:00:08]} (20. f5 $142 $1 {[%cal Rf5e6]} Qc7 21. fxe6 fxe6 22. Qf2) 20... d5 {[%emt 0:10:05]} ({Black should try} 20... Qc7) 21. f5 $1 $36 {[%emt 0:00:17][%mdl 2048] aiming for fxg6. White is in control.} (21. Bb6 $6 Qxb6 22. Qxb6 Bc5+ $11) 21... gxf5 {[%emt 0:09:30]} 22. exf5 {[%emt 0:00:45][%cal Be4f5,Bf5f6][%mdl 32]} (22. Bb6 Qxb6 $1 23. Qxb6 Bc5+ $15) 22... e5 {[%emt 0:03:28][%cal Od5d4]} 23. g6 {[%emt 0:26:44] Inhibits d4. White is more active.} (23. Bb6 $6 Qxb6 24. Qxb6 Bc5+ $11) (23. Kh1 $16 Rxc3 24. bxc3 Qxc3 25. Rae1) 23... Nf6 {[%emt 0:08:06]} 24. Kh1 {[%emt 0:00:25]} ({But not} 24. Bb6 {[#]} Qxb6 $1 25. Qxb6 (25. gxf7+ $2 Kxf7 26. Qxb6 Bc5+ $19) 25... Bc5+ $17) (24. Qg3 $14 Qc7 25. Rae1) 24... Ng4 $2 {[%emt 0:05:14][%mdl 8192]} (24... Qc7 $1 $11 {and Black is okay.} 25. Bb6 Qd6) 25. Qg3 $18 {[%emt 0:00:59]} Rc4 {[%emt 0:00:06]} 26. f6 {[%emt 0:01:52] Black must now prevent gxh7+.} Bf8 {[%emt 0:07:58]} 27. gxh7+ {[%emt 0:01:04]} ({Weaker is} 27. g7 Bd6 $18) 27... Kxh7 {[%emt 0:00:31]} 28. Rf5 {[%emt 0:00:24][%cal Bf1f5,Bf5g5,Bg5g7][%mdl 32] Qh3+ would kill now.} Nh6 {[%emt 0:07:26]} 29. Rg5 {[%emt 0:00:25] White mates.} Rxc3 {[%emt 0:05:53]} 30. Rg7+ {[%emt 0:00:41]} Kh8 {[%emt 0:00:02]} 31. Qg5 {[%emt 0:19:40] Weighted Error Value: White=0.24 (precise) /Black=0.83} 1-0

[Event "ITT 1st Parada Jamundi 2022"]
[Site "Jamundi Valle"]
[Date "2022.12.11"]
[Round "9.9"]
[White "Lopez Rayo, Santiago"]
[Black "Larino Nieto, David"]
[Result "0-1"]
[ECO "C61"]
[WhiteElo "2300"]
[BlackElo "2466"]
[Annotator "TA"]
[PlyCount "134"]
[EventDate "2022.12.05"]
[EventType "swiss"]
[EventCountry "COL"]
[SourceTitle "playchess.com"]
[Source "ChessBase"]
[SourceQuality "1"]
[TimeControl "5400+30"]

{[%evp 10,134,58,47,50,48,52,22,27,36,33,31,27,28,23,31,22,17,27,0,18,0,15,0,22,-12,-12,-7,0,0,-11,-17,-12,-10,-10,-7,-25,-14,0,-19,0,0,0,-39,-4,-45,-44,-65,-45,-45,-45,-106,-106,-77,-51,-56,-59,-104,-104,-109,-105,-103,-70,-70,-70,-70,0,0,0,0,0,0,0,0,0,-20,-20,-25,-23,-94,-39,-78,-94,-94,-94,-94,-94,-94,-94,-94,-101,-101,-101,-102,-102,-102,-102,-102,-102,-102,-102,-102,-102,-102,-102,-12839,-12839,-12840,-12840,-12841,-12841,-12841,-12842,-12842,-12843,-12843,-12843,-12844,-12844,-12848,-12848,-12849,-12848,-12849,-12848,-12849,-12849]} 1. e4 {[%emt 0:00:09]} e5 {[%emt 0:04:45]} 2. Nf3 {[%emt 0:00:11]} Nc6 {[%emt 0:00:04]} 3. Bb5 {[%emt 0:00:08]} Nd4 {[%emt 0:00:01]} 4. Nxd4 {[%emt 0:00:58]} exd4 {[%emt 0:00:40]} 5. O-O {[%emt 0:00:37]} c6 {[%emt 0:00:04]} 6. Bc4 {[%emt 0:00:16]} Nf6 {[%emt 0:00:16] C61: Ruy Lopez: Bird's Defence.} 7. d3 {[%emt 0:01:12]} a5 {[%emt 0:03:08]} 8. a3 {[%emt 0:11:39] [#]} d5 $146 {[%emt 0:01:27] The position is equal.} ({Predecessor:} 8... Be7 9. Bg5 d6 10. h3 h6 11. Bh4 h5 12. Nd2 Qc7 13. Nf3 c5 14. Re1 Ng4 {0-1 (45) Da Silva Filho,J (1624)-De Lima,C (1527) Joao Pessoa 2014}) 9. exd5 {[%emt 0:00:14]} Nxd5 {[%emt 0:00:06]} 10. Re1+ {[%emt 0:00:39]} Be7 {[%emt 0:00:25]} 11. Bg5 {[%emt 0:01:35] Black must now prevent Bxd5.} O-O {[%emt 0:01:48]} 12. Bxe7 {[%emt 0:00:10]} Nxe7 {[%emt 0:00:03]} 13. Nd2 {[%emt 0:01:09]} a4 {[%emt 0:02:12]} 14. Qf3 {[%emt 0:08:08]} Ng6 {[%emt 0:04:55]} 15. Qe4 {[%emt 0:10:07]} Ra7 {[%emt 0:03:04]} 16. Ba2 {[%emt 0:07:50]} b6 {[%emt 0:05:10]} 17. Nf3 {[%emt 0:18:31]} (17. Nc4 $5 {[%cal Re4c6]}) 17... c5 {[%emt 0:00:40]} 18. Qd5 {[%emt 0:00:48]} Rd7 {[%emt 0:02:41]} (18... Rc7 {simplifies} 19. Qxd8 Rxd8 20. g3 Bb7) 19. Qh5 {[%emt 0:06:21] Threatens to win with Ng5.} Qf6 {[%emt 0:03:46]} 20. Qg5 {[%emt 0:11:49]} (20. Nd2 {keeps more tension.} Bb7 21. Ne4 Qc6 22. Qg4) 20... Qxg5 {[%emt 0:01:51]} 21. Nxg5 {[%emt 0:00:02]} Bb7 {[%emt 0:00:09]} 22. Ne4 {[%emt 0:07:47]} Rc8 {[%emt 0:03:45]} 23. Nd2 {[%emt 0:00:28]} b5 {[%emt 0:00:51] Against Nc4} 24. g3 {[%emt 0:00:41]} Kf8 {[%emt 0:00:21]} 25. b3 {[%emt 0:01:35]} axb3 {[%emt 0:00:29]} 26. cxb3 {[%emt 0:01:21]} Ba6 {[%emt 0:01:34]} 27. Rac1 {[%emt 0:02:15]} Rdc7 {[%emt 0:00:37]} 28. Rc2 {[%emt 0:02:22]} b4 {[%emt 0:00:37]} 29. axb4 {[%emt 0:00:09]} cxb4 {[%emt 0:00:05]} (29... Bxd3 30. Rxc5 Rxc5 31. bxc5 $11) 30. Nc4 {[%emt 0:01:04] [#]} ({Better is} 30. Rxc7 $1 $15 Rxc7 31. Bb1) 30... Re7 $1 $17 {[%emt 0:00:47]} 31. Rce2 {[%emt 0:01:19]} Rce8 {[%emt 0:00:54]} 32. Kf1 {[%emt 0:01:03]} Bc8 {[%emt 0:00:22] And now ...Bh3+ would win.} 33. f3 {[%emt 0:02:44]} Rxe2 {[%emt 0:02:46]} 34. Rxe2 {[%emt 0:00:02]} Be6 {[%emt 0:00:11]} 35. Bb1 {[%emt 0:00:36]} Ra8 {[%emt 0:00:22]} 36. Ra2 {[%emt 0:00:35]} Rxa2 {[%emt 0:00:43]} 37. Bxa2 {[%emt 0:00:01]} Bxc4 {[%emt 0:00:09]} (37... Ne7 $15) 38. dxc4 $15 {[%emt 0:00:44][%mdl 4096] Endgame KB-KN} Ne5 {[%emt 0:00:02]} 39. Ke2 {[%emt 0:00:24]} d3+ {[%emt 0:03:41]} 40. Ke3 {[%emt 0:00:05]} d2 {[%emt 0:00:26]} 41. Kxd2 {[%emt 0:00:01]} Nxf3+ {[%emt 0:00:02]} 42. Ke3 {[%emt 0:00:19]} (42. Kd3 $5 {[%cal Rc4c5]}) 42... Nxh2 {[%emt 0:00:06]} 43. Bb1 {[%emt 0:00:14] Prevents f5.} h5 {[%emt 0:01:41]} 44. Bf5 {[%emt 0:01:03] [#]} (44. Bd3 $11 {remains equal.}) 44... g6 {[%emt 0:00:37]} ({Black should try} 44... Ke7 $1 $17) 45. Bh3 {[%emt 0:00:27]} g5 {[%emt 0:00:10]} 46. Kf2 {[%emt 0:01:03]} Ke7 {[%emt 0:02:43]} 47. Kg2 {[%emt 0:00:10]} Ng4 {[%emt 0:00:05]} 48. Bxg4 {[%emt 0:00:03]} hxg4 $17 {[%emt 0:00:02] KP-KP} 49. Kf2 {[%emt 0:00:08]} Kd6 {[%emt 0:00:27]} 50. Ke2 {[%emt 0:00:45]} Ke5 {[%emt 0:00:06]} 51. Kd3 {[%emt 0:00:32]} f6 {[%emt 0:00:12][%cal Bf7f6,Bf6f5,Bf5f4][%mdl 32]} 52. Ke3 {[%emt 0:00:14]} f5 {[%emt 0:00:07]} 53. Ke2 {[%emt 0:00:16]} Kd4 {[%emt 0:00:20]} 54. Kf2 {[%emt 0:00:36]} f4 {[%emt 0:00:10]} 55. Kf1 {[%emt 0:00:14]} Ke5 {[%emt 0:01:23]} ({Don't play} 55... fxg3 $6 56. Kg2 $11) (55... Kc3 $2 56. c5 $18) 56. Kf2 {[%emt 0:00:04]} Ke4 {[%emt 0:00:08]} 57. Kf1 $2 {[%emt 0:00:31][%mdl 8192] This move loses the game for White.} (57. Ke2 $17) 57... Kf3 $19 {[%emt 0:01:10] Black is clearly winning.} ({Worse is} 57... fxg3 58. Kg2 $11) 58. c5 {[%emt 0:04:19]} Kxg3 {[%emt 0:00:03]} 59. c6 {[%emt 0:00:33]} Kh2 {[%emt 0:00:04]} 60. c7 {[%emt 0:00:32]} g3 {[%emt 0:00:05]} 61. c8=Q {[%emt 0:00:30]} g2+ {[%emt 0:00:09]} 62. Ke2 {[%emt 0:00:20]} g1=Q {[%emt 0:00:06]} (62... g1=B $2 {is a self mate.} 63. Kf3 Be3 64. Qg4 Kh1 65. Qg2#) 63. Qh8+ {[%emt 0:00:41]} Kg3 {[%emt 0:00:09]} 64. Qf6 {[%emt 0:00:34]} Qe3+ {[%emt 0:00:09]} 65. Kd1 {[%emt 0:00:01]} Qxb3+ {[%emt 0:00:08]} 66. Ke2 {[%emt 0:00:01]} Qe3+ {[%emt 0:00:10]} 67. Kd1 {[%emt 0:00:01]} Qd3+ {[%emt 0:00:06] Weighted Error Value: White=0.19 (very precise) /Black=0.07 (flawless)} 0-1